bitfinex/quotes_ETHUSD_20250519
["timestamp","ask_amount","ask_price","bid_price","bid_amount"]
[1747656579438,21.78931947,2400.2,2400.1,0.399]
[1747656581390,22.54101947,2400.2,2400.1,0.399]
[1747656581540,21.78931947,2400.2,2400.1,0.399]
[1747656583078,17.623,2400.2,2400.1,0.399]
[1747656583287,21.78931947,2400.2,2400.1,0.399]
[1747656583444,21.78931947,2400.2,2400.1,0.53227949]
[1747656584768,21.78931947,2400.2,2400.1,0.399]
[1747656584951,4.16631947,2400.2,2400.1,0.399]
[1747656585347,13.83664949,2400.2,2400.1,0.399]
[1747656585552,13.78456605,2400.2,2400.1,0.399]
[1747656587390,4.16805601,2399.2,2399.1,0.1]
[1747656587564,40.69865601,2399.2,2399.1,0.1]
[1747656587760,22.96865601,2399.2,2399.1,0.1]
[1747656587965,13.08505601,2399.2,2399.1,0.1]
[1747656588552,12.98495988,2399.3,2399.1,0.1]
[1747656588786,18.7724,2399.9,2399.1,0.1]
[1747656588953,4.1677259,2399.4,2399.2,0.8021]
[1747656589151,8.927,2399.6,2399.2,0.8021]
[1747656589352,4.16778257,2399.4,2399.1,0.1]
[1747656589576,4.16780865,2399.4,2399.1,0.1]
[1747656589776,8.927,2399.6,2399.1,0.1]
[1747656590084,4.16774586,2399.4,2399.1,0.1]
[1747656590307,4.16769667,2399.5,2399.1,0.1]
[1747656590455,4.16755933,2399.5,2399.1,0.1]
[1747656590790,13.09443765,2399.6,2399.2,0.13332362]
[1747656590988,13.09438905,2399.6,2399.3,0.7762]
[1747656591153,13.09437582,2399.6,2399.3,0.7762]
[1747656593168,4.16754895,2399.5,2399.3,0.7762]
[1747656593757,4.16770859,2399.4,2399.3,0.7762]
[1747656594895,8.927,2399.6,2399.3,0.7762]
[1747656594896,2.67667123,2400.1,2399.3,1.3262]
[1747656595060,21.88315126,2400.3,2399.3,1.3262]
[1747656595261,4.16697376,2399.9,2399.4,4.1676333]
[1747656595901,4.16641784,2400.2,2399.4,0.55]
[1747656596061,4.16641784,2400.2,2399.5,1.3807]
[1747656596262,4.16641784,2400.2,2399.8,4.16700834]
[1747656596462,4.16565357,2400.6,2399.6,4.16736122]
[1747656596463,22.63833174,2400.8,2399.7,0.55]
[1747656596671,39.55173174,2400.8,2400.2,0.8035]
[1747656597074,18.7974,2401.5,2400.3,9.36127492]
[1747656597278,4.16434091,2401.4,2400.9,4.95509593]
[1747656597799,4.16434091,2401.4,2400.9,0.79]
[1747656597800,4.16443657,2401.3,2400.9,0.79]
[1747656598283,4.16493127,2401.0,2400.9,0.79]
[1747656598489,4.16486013,2401.1,2400.9,0.79]
[1747656598798,4.99737202,2401.3,2400.9,0.79]
[1747656598965,17.71,2401.6,2400.9,0.79]
[1747656599165,4.16452325,2401.3,2400.9,0.79]
[1747656599392,4.16459469,2401.2,2400.9,0.79]
[1747656600402,0.05205991,2401.4,2400.9,0.79]
[1747656600563,36.4575,2402.2,2401.2,5.47735423]
[1747656600767,4.26339303,2401.9,2401.4,4.164142]
[1747656600997,0.1,2401.9,2401.2,0.7629]
[1747656601182,4.16401634,2401.6,2401.2,0.7629]
[1747656601387,4.16373845,2401.7,2401.2,0.7629]
[1747656601578,4.5901123,2401.7,2401.3,0.13319457]
[1747656601783,0.1,2401.9,2401.3,4.29759846]
[1747656601977,0.1,2401.9,2401.4,4.16423752]
[1747656602177,0.1,2401.9,2401.8,4.163544]
[1747656602503,0.1,2401.9,2401.7,4.16371709]
[1747656603223,0.1,2401.9,2401.8,4.961644]
[1747656603375,0.1,2401.9,2401.8,13.511644]
[1747656603571,0.1,2401.9,2401.8,22.413644]
[1747656604597,0.1,2401.9,2401.0,0.8115]
[1747656604798,0.1,2401.9,2401.7,0.7765]
[1747656604998,4.163544,2401.8,2401.7,0.7765]
[1747656605505,4.26341836,2401.9,2401.7,0.7765]
[1747656605801,5.106147,2401.9,2401.7,0.7765]
[1747656605992,0.1,2401.9,2401.7,0.7765]
[1747656606312,4.26337934,2401.9,2401.7,0.7765]
[1747656607520,4.16371736,2401.7,2401.6,0.15042506]
[1747656608214,4.16371736,2401.7,2401.2,4.92437118]
[1747656608387,4.16361921,2401.8,2401.2,0.7598]
[1747656608592,4.16415788,2401.5,2401.2,0.7598]
[1747656608915,4.16430479,2401.4,2401.2,0.7598]
[1747656609476,4.16430479,2401.4,2401.2,0.75498047]
[1747656609710,4.16441094,2401.3,2401.2,0.75498047]
[1747656609928,4.16441094,2401.3,2400.7,9.06942506]
[1747656610204,4.16525101,2400.9,2400.7,0.15042506]
[1747656610404,4.16519315,2400.9,2400.7,0.15042506]
[1747656610795,4.16421021,2401.5,2401.0,4.16483031]
[1747656610993,17.819,2401.4,2401.1,4.16473302]
[1747656611194,17.819,2401.4,2401.2,4.16456242]
[1747656611529,4.16391698,2401.6,2401.1,12.16471099]
[1747656611708,4.16447935,2401.3,2400.8,12.16514704]
[1747656611914,4.21577303,2401.7,2400.6,17.818]
[1747656612074,4.16527343,2400.9,2400.3,4.16602456]
[1747656612275,4.1654746,2400.7,2400.3,4.16602456]
[1747656612476,4.16511659,2400.9,2400.4,4.16580761]
[1747656612803,4.16522842,2400.9,2400.4,4.16594039]
[1747656613004,4.16496209,2401.0,2400.2,8.8122]
[1747656613204,4.16511733,2400.9,2400.2,8.8122]
[1747656613431,4.16511733,2400.9,2400.4,12.1658797]
[1747656613817,21.98560214,2401.2,2400.2,0.8122]
[1747656613996,4.16530543,2400.8,2400.4,8.0]
[1747656614193,4.16530543,2400.8,2400.4,4.16595568]
[1747656614532,4.16537557,2400.8,2400.4,8.0]
[1747656614933,21.98560214,2401.2,2400.4,8.0]
[1747656614934,4.16546049,2400.7,2400.4,8.0]
[1747656615435,4.16537162,2400.8,2400.4,8.0]
[1747656615634,4.16487048,2401.1,2400.6,4.16547084]
[1747656615944,4.16502206,2401.0,2400.5,12.16569626]
[1747656616110,4.16535983,2400.8,2400.5,8.0]
[1747656616306,4.16493127,2401.0,2400.2,0.8122]
[1747656616498,4.16572584,2400.6,2400.2,0.8122]
[1747656616695,4.16554845,2400.7,2400.2,0.8122]
[1747656616895,8.877,2400.7,2400.2,0.8122]
[1747656617132,13.04261635,2400.7,2400.2,4.97842481]
[1747656617431,13.04248872,2400.7,2400.3,4.16603005]
[1747656617610,4.16565021,2400.6,2400.2,4.9784346]
[1747656617801,8.877,2400.7,2400.4,4.16587559]
[1747656618004,4.16524017,2400.9,2400.4,4.16587559]
[1747656618199,8.868,2401.0,2400.6,4.16555366]
[1747656618400,4.16519846,2400.9,2400.4,4.1658501]
[1747656618599,8.865,2401.1,2400.3,0.55]
[1747656618920,4.16521344,2400.9,2400.4,4.16590481]
[1747656619110,4.16521344,2400.9,2400.5,4.16578953]
[1747656619312,8.865,2401.1,2400.6,4.16560897]
[1747656619530,4.16495312,2401.0,2400.6,4.16560897]
[1747656619745,4.16386794,2401.7,2401.2,4.16449923]
[1747656620034,1.83974683,2401.6,2400.9,0.55]
[1747656620239,4.16431999,2401.4,2401.0,8.0]
[1747656620625,4.16431999,2401.4,2401.0,8.13320686]
[1747656620821,4.16468535,2401.2,2401.0,0.13320686]
[1747656621035,4.16448602,2401.3,2401.0,0.13320686]
[1747656621740,4.16469792,2401.2,2401.0,0.13320686]
[1747656621923,4.16469792,2401.2,2400.8,8.7882]
[1747656621924,4.16472725,2401.2,2400.8,8.7882]
[1747656622251,4.16444612,2401.3,2400.9,4.1650637]
[1747656622404,13.02633374,2401.4,2400.9,4.16510475]
[1747656622604,13.02633374,2401.4,2401.0,4.16493018]
[1747656622833,8.862,2401.4,2401.1,4.16475432]
[1747656623029,8.862,2401.4,2400.8,0.7882]
[1747656623345,21.93203344,2401.6,2400.8,0.7882]
[1747656623546,4.26344224,2401.9,2401.2,0.55]
[1747656623705,4.26344224,2401.9,2401.4,4.16409735]
[1747656623907,4.1635817,2401.8,2401.4,4.16409735]
[1747656624217,4.26346769,2401.9,2401.5,4.16404869]
[1747656624559,4.26337121,2401.9,2401.5,4.16404869]
[1747656624848,4.26337121,2401.9,2401.6,0.13318322]
[1747656625345,4.16354958,2401.8,2401.6,0.13318322]
[1747656625545,4.16371736,2401.7,2401.6,0.13318322]
[1747656626308,0.1,2401.9,2401.6,0.13318322]
[1747656626563,4.26337582,2401.9,2401.6,0.13318322]
[1747656626704,4.16355486,2401.8,2401.6,0.13318322]
[1747656626905,0.1,2401.9,2401.7,4.16367548]
[1747656627307,0.1,2401.9,2401.8,4.163544]
[1747656627934,0.1,2401.9,2401.8,4.29672722]
[1747656628316,0.1,2401.9,2401.8,5.63622722]
[1747656630925,0.1,2401.9,2401.8,1.47268322]
[1747656631126,0.1,2401.9,2401.8,0.13318322]
[1747656631326,5.10601294,2401.9,2401.8,0.13318322]
[1747656632709,5.10601294,2401.9,2401.2,0.7789]
[1747656632936,4.16421297,2401.5,2401.2,0.93015346]
[1747656633219,4.99254894,2401.8,2401.2,0.15125346]
[1747656633417,4.16414496,2401.5,2401.2,0.15125346]
[1747656633661,4.99260489,2401.8,2401.3,0.13320732]
[1747656633945,4.16391256,2401.6,2401.3,0.13320732]
[1747656634154,4.16409045,2401.5,2401.3,0.13320732]
[1747656634537,4.16423752,2401.4,2401.3,0.13320732]
[1747656634748,14.68487032,2401.4,2401.3,0.13320732]
[1747656635252,15.48187032,2401.4,2401.3,0.13320732]
[1747656636061,15.48187032,2401.4,2400.9,0.15125346]
[1747656636062,4.1648121,2401.1,2400.9,0.15125346]
[1747656636357,4.16462254,2401.2,2400.9,0.15125346]
[1747656637272,4.16462254,2401.2,2400.8,0.13322782]
[1747656638141,12.96034989,2401.4,2400.9,0.13322782]
[1747656638345,12.96034989,2401.4,2400.9,4.29818126]
[1747656639269,4.16443257,2401.3,2400.9,4.29818126]
[1747656639655,4.16443257,2401.3,2401.0,0.13322782]
[1747656640467,4.16442061,2401.3,2401.0,0.13322782]
[1747656640642,12.96034053,2401.4,2401.1,0.13322782]
[1747656640827,4.16445684,2401.3,2401.1,0.13322782]
[1747656642470,4.16458437,2401.2,2401.1,0.13322782]
[1747656642831,4.1645086,2401.3,2401.1,0.13322782]
[1747656643034,4.1645086,2401.3,2400.8,0.15125346]
[1747656643035,8.796,2401.4,2401.2,0.13322782]
[1747656643230,8.918,2401.6,2401.2,0.13322782]
[1747656643434,21.81891811,2401.6,2401.2,4.29780312]
[1747656643956,21.81891811,2401.6,2401.2,0.13322782]
[1747656644361,4.1640822,2401.5,2401.2,0.13322782]
[1747656644564,4.1640822,2401.5,2401.3,0.13322782]
[1747656645671,13.08198621,2401.6,2401.3,0.13322782]
[1747656646032,4.16414837,2401.5,2401.3,0.13322782]
[1747656646239,4.21628989,2401.4,2401.3,0.13322782]
[1747656646433,4.16423752,2401.4,2401.3,0.13322782]
[1747656648747,4.16475781,2401.1,2401.0,0.15125346]
[1747656649276,12.95075781,2401.1,2401.0,0.15125346]
[1747656650585,4.16562526,2400.6,2400.5,0.15125346]
[1747656651293,4.16531756,2400.8,2400.5,0.15125346]
[1747656651294,4.16551067,2400.7,2400.5,0.15125346]
[1747656651655,4.16528705,2400.8,2400.5,0.284499]
[1747656651860,8.786,2401.1,2400.5,0.284499]
[1747656651861,4.16512653,2400.9,2400.5,0.284499]
[1747656653198,4.16512653,2400.9,2400.5,4.45028159]
[1747656653412,4.16529468,2400.8,2400.5,0.284499]
[1747656653576,4.16529468,2400.8,2400.5,0.13324554]
[1747656653774,4.16512653,2400.9,2400.5,0.13324554]
[1747656654171,4.16503637,2401.0,2400.5,4.298987]
[1747656654376,4.16493127,2401.0,2400.5,0.13324554]
[1747656654571,4.16493127,2401.0,2400.5,4.29903963]
[1747656654999,4.16493127,2401.0,2400.6,0.13324554]
[1747656655299,4.16502688,2401.0,2400.6,0.13324554]
[1747656655985,4.16502688,2401.0,2400.6,4.29884816]
[1747656656286,4.16520509,2400.9,2400.6,0.13324554]
[1747656656625,4.16529391,2400.8,2400.7,0.13324554]
[1747656657602,4.16520533,2400.9,2400.7,0.13324554]
[1747656657806,4.16520533,2400.9,2400.5,0.13324554]
[1747656658306,4.16520533,2400.9,2400.5,4.29901853]
[1747656658775,4.16500766,2401.0,2400.5,4.29901853]
[1747656658970,4.16510519,2400.9,2400.5,4.29901853]
[1747656659464,4.16510519,2400.9,2400.6,0.13324554]
[1747656660403,4.16531888,2400.8,2400.7,0.13324554]
[1747656660911,21.60380534,2401.1,2400.7,0.13324554]
[1747656661108,21.60385632,2401.1,2400.7,4.2986472]
[1747656661408,4.16494801,2401.0,2400.7,0.13324554]
[1747656661629,21.60382636,2401.1,2400.7,0.13324554]
[1747656661806,4.16504975,2401.0,2400.8,0.13324554]
[1747656661971,21.6038645,2401.1,2400.8,0.13324554]
[1747656662292,10.07,2401.4,2401.2,4.16446813]
[1747656662468,4.1639206,2401.6,2401.1,4.16460376]
[1747656662820,4.16393065,2401.6,2401.2,4.29776789]
[1747656663210,4.16393065,2401.6,2401.2,0.13324554]
[1747656663513,4.1640727,2401.5,2401.2,0.13324554]
[1747656663812,4.16441094,2401.3,2401.2,0.13324554]
[1747656664309,4.16433444,2401.4,2400.9,12.16507689]
[1747656664617,4.16433444,2401.4,2401.0,4.16490265]
[1747656665286,18.1749,2401.7,2401.1,4.16472536]
[1747656665492,22.33878469,2401.7,2401.2,4.16458437]
[1747656666205,4.16389708,2401.6,2401.2,4.16458437]
[1747656666704,4.16389708,2401.6,2401.1,4.29788703]
[1747656668024,4.16409551,2401.5,2401.3,0.13321061]
[1747656668229,4.16397328,2401.6,2401.4,0.13321061]
[1747656669493,4.16397328,2401.6,2401.5,0.13321061]
[1747656670202,22.33873904,2401.7,2401.5,0.13321061]
[1747656671094,4.16389073,2401.6,2401.2,4.3162492]
[1747656671812,18.1749,2401.7,2401.2,0.15172794]
[1747656672015,0.1,2401.9,2401.3,4.16441094]
[1747656672219,0.1,2401.9,2401.6,4.16382381]
[1747656672420,0.1,2401.9,2401.5,4.16396829]
[1747656672421,4.26339469,2401.9,2401.5,4.16396829]
[1747656672940,0.1,2401.9,2401.6,4.16378744]
[1747656673091,0.1,2401.9,2401.5,4.16398722]
[1747656673652,4.26339404,2401.9,2401.5,4.16398722]
[1747656673850,0.1,2401.9,2401.6,4.29708117]
[1747656674149,0.1,2401.9,2401.6,0.13320301]
[1747656674529,4.26338042,2401.9,2401.6,0.13320301]
[1747656674728,0.1,2401.9,2401.6,0.13320301]
[1747656675133,0.1,2401.9,2401.6,4.2970385]
[1747656675332,0.1,2401.9,2401.6,0.13320301]
[1747656675630,0.1,2401.9,2401.7,0.13320301]
[1747656676226,4.26338368,2401.9,2401.7,0.13320301]
[1747656676731,0.1,2401.9,2401.7,0.13320301]
[1747656677098,0.1,2401.9,2401.7,4.29690242]
[1747656677298,0.1,2401.9,2401.8,4.29674701]
[1747656677501,0.1,2401.9,2401.8,12.84674701]
[1747656678112,18.083,2402.9,2401.8,12.84674701]
[1747656678309,0.1,2402.9,2402.4,4.1623453]
[1747656678524,4.26173717,2402.9,2402.4,4.16239602]
[1747656678832,4.26172717,2402.9,2402.5,0.13320301]
[1747656679236,4.26172717,2402.9,2402.5,4.29551843]
[1747656679535,0.1,2402.9,2402.5,0.92030301]
[1747656679737,0.1,2402.9,2402.8,4.16181122]
[1747656680233,0.1,2402.9,2402.8,4.29501423]
[1747656680640,0.1,2402.9,2402.8,0.13320301]
[1747656681136,4.26163802,2402.9,2402.8,0.13320301]
[1747656681307,14.64300954,2402.9,2402.8,0.13320301]
[1747656682052,4.16250416,2402.4,2402.3,0.15172794]
[1747656682354,4.16298686,2402.2,2401.9,0.15172794]
[1747656682851,4.16319733,2402.0,2401.9,0.15172794]
[1747656683548,4.97739733,2402.0,2401.9,0.15172794]
[1747656683754,14.42944331,2402.0,2401.9,0.15172794]
[1747656684217,4.16367022,2401.8,2401.4,8.0]
[1747656684648,4.16423752,2401.4,2401.3,0.15172794]
[1747656684825,4.16410016,2401.5,2401.3,0.15172794]
[1747656686242,4.16362381,2401.8,2401.3,4.31609904]
[1747656686420,12.71672994,2401.7,2401.3,0.15172794]
[1747656686619,12.71678569,2401.7,2401.3,0.15172794]
[1747656687030,12.71678569,2401.7,2401.0,4.16492675]
[1747656687031,4.16458437,2401.2,2401.1,0.15172794]
[1747656687335,22.27145401,2401.2,2401.1,0.15172794]
[1747656687533,25.27939801,2401.2,2401.1,0.15172794]
[1747656688045,25.59800261,2401.2,2401.1,0.15172794]
[1747656688667,25.27939801,2401.2,2401.1,0.15172794]
[1747656688966,25.27839801,2401.2,2401.1,0.15172794]
[1747656689263,8.05439801,2401.2,2401.1,0.15172794]
[1747656689465,4.16631947,2400.2,2400.1,0.1]
[1747656689664,12.79331947,2400.2,2400.1,0.1]
[1747656691174,8.627,2400.2,2400.1,0.1]
[1747656692696,12.79331947,2400.2,2400.1,0.1]
[1747656692847,16.14646832,2400.2,2400.1,0.1]
[1747656695520,4.98123454,2400.5,2400.1,0.1]
[1747656695693,4.16613284,2400.4,2400.1,0.1]
[1747656696010,4.1659519,2400.5,2400.1,0.1]
[1747656696011,4.16631947,2400.2,2400.1,0.1]
[1747656696575,12.82431947,2400.2,2400.1,0.1]
[1747656698068,13.64391947,2400.2,2400.1,0.1]
[1747656698385,24.98972989,2400.2,2400.1,0.1]
[1747656699526,24.98972989,2400.2,2399.1,0.1]
[1747656699527,4.16805601,2399.2,2399.1,0.1]
[1747656699705,21.53905601,2399.2,2399.1,0.1]
[1747656700980,32.41655601,2399.2,2399.1,0.1]
[1747656701204,4.97694629,2398.4,2398.3,0.005]
[1747656701380,22.42994629,2398.4,2398.3,0.005]
[1747656701711,12.9642038,2398.6,2398.3,0.005]
[1747656701927,4.1692755,2398.5,2398.3,0.005]
[1747656702123,8.795,2398.6,2398.3,0.005]
[1747656702323,4.16944629,2398.4,2398.3,0.005]
[1747656704427,4.92392191,2399.0,2398.3,0.005]
[1747656704591,4.16944629,2398.4,2398.3,0.005]
[1747656705622,4.16935915,2398.5,2398.3,0.005]
[1747656706124,4.16927809,2398.5,2398.3,0.005]
[1747656706324,12.9751497,2398.6,2398.3,0.005]
[1747656706527,21.63998698,2398.7,2398.3,0.005]
[1747656706728,17.471,2398.7,2398.3,0.7881]
[1747656707463,4.16925174,2398.6,2398.3,0.7881]
[1747656707663,4.16935333,2398.5,2398.3,0.005]
[1747656707859,14.99496742,2398.7,2398.3,0.005]
[1747656708051,4.16927812,2398.5,2398.3,0.005]
[1747656708251,19.62398012,2398.7,2398.3,0.005]
[1747656708464,21.62901254,2398.7,2398.3,0.005]
[1747656708629,4.16910653,2398.6,2398.3,0.005]
[1747656709559,21.6289948,2398.7,2398.3,0.005]
[1747656710041,4.1682547,2399.1,2398.4,0.7934]
[1747656710241,4.16822975,2399.1,2398.4,0.7934]
[1747656710567,4.16930904,2398.5,2398.3,0.005]
[1747656710939,4.16919706,2398.6,2398.3,0.005]
[1747656711831,4.16914799,2398.6,2398.3,0.005]
[1747656712330,4.16944629,2398.4,2398.3,0.005]
[1747656713161,4.96094629,2398.4,2398.3,0.005]
[1747656714531,1.24868997,2398.6,2398.3,0.005]
[1747656714733,4.16875337,2398.8,2398.4,4.16931851]
[1747656714934,4.16875337,2398.8,2398.3,4.17453512]
[1747656715133,4.16894006,2398.7,2398.3,4.17453512]
[1747656715436,4.16894006,2398.7,2398.3,0.005]
[1747656715850,4.16894006,2398.7,2398.3,4.17456529]
[1747656716045,4.16894006,2398.7,2398.3,0.005]
[1747656716369,4.16894006,2398.7,2398.4,0.13336734]
[1747656716872,8.664,2399.0,2398.4,0.13336734]
[1747656717056,4.16875471,2398.8,2398.4,0.13336734]
[1747656717249,4.16875471,2398.8,2398.4,4.30274097]
[1747656717451,4.1686501,2398.9,2398.5,4.16919766]
[1747656717668,21.61546457,2399.0,2398.6,4.16907713]
[1747656718037,21.61546457,2399.0,2398.4,0.13336734]
[1747656718038,4.16859189,2398.9,2398.4,0.13336734]
[1747656718354,4.16867604,2398.9,2398.7,0.13336734]
[1747656718856,4.16875104,2398.8,2398.7,0.13336734]
[1747656719054,6.74719375,2398.8,2398.7,0.13336734]
[1747656719260,7.56669375,2398.8,2398.7,0.13336734]
[1747656719974,6.74719375,2398.8,2398.7,0.13336734]
[1747656720349,6.79930787,2398.8,2398.7,0.13336734]
[1747656720561,7.52069375,2398.8,2398.7,0.13336734]
[1747656721075,7.52069375,2398.8,2398.5,0.15172794]
[1747656721371,4.16944629,2398.4,2398.3,0.005]
[1747656721572,8.821,2398.4,2398.3,0.005]
[1747656721773,8.664,2398.5,2398.3,0.005]
[1747656721774,17.494,2398.9,2398.3,0.8235]
[1747656721985,21.66265682,2398.9,2398.4,0.13337067]
[1747656722278,4.16927246,2398.5,2398.4,0.13337067]
[1747656722479,5.90093364,2398.5,2398.4,0.13337067]
[1747656723250,16.02306186,2398.5,2398.4,0.13337067]
[1747656723585,15.97093364,2398.5,2398.4,0.13337067]
[1747656723751,4.16944629,2398.4,2398.3,0.005]
[1747656723950,22.87314629,2398.4,2398.3,0.005]
[1747656724163,4.16979401,2398.2,2398.1,0.1]
[1747656724379,15.00149401,2398.2,2398.1,0.1]
[1747656724984,19.066,2398.2,2398.1,0.1]
[1747656725192,23.23579401,2398.2,2398.1,0.1]
[1747656725358,24.01329401,2398.2,2398.1,0.1]
[1747656725695,28.11148671,2398.2,2398.1,0.1]
[1747656726680,23.23579401,2398.2,2398.1,0.23340811]
[1747656726995,23.21879401,2398.2,2398.1,0.23340811]
[1747656727895,23.98639401,2398.2,2398.1,0.23340811]
[1747656728287,23.98639401,2398.2,2398.1,0.1]
[1747656730066,22.87839401,2398.2,2398.1,0.1]
[1747656730397,22.10879401,2398.2,2398.1,0.1]
[1747656730562,17.939,2398.2,2398.1,0.1]
[1747656730909,8.968,2398.7,2398.4,4.16943438]
[1747656731413,13.13695277,2398.7,2398.5,0.1333701]
[1747656731609,13.13701568,2398.7,2398.5,0.1333701]
[1747656731763,8.968,2398.7,2398.5,0.1333701]
[1747656732173,8.968,2398.7,2398.5,4.30256822]
[1747656732380,8.968,2398.7,2398.6,0.805]
[1747656732688,8.968,2398.7,2398.6,4.97409864]
[1747656732876,13.13416367,2399.2,2398.6,4.97409864]
[1747656733079,26.984,2399.3,2398.9,4.16857169]
[1747656733290,26.984,2399.3,2398.7,4.16892483]
[1747656733291,31.15188322,2399.3,2398.8,4.16866054]
[1747656733485,8.968,2399.4,2398.8,0.7623]
[1747656733818,4.16738429,2399.6,2399.1,4.16814813]
[1747656733998,4.16736122,2399.6,2399.0,4.16826707]
[1747656734207,4.16736122,2399.6,2399.1,4.16821599]
[1747656734704,4.16765964,2399.5,2399.2,0.1333701]
[1747656735015,4.16736122,2399.6,2399.2,0.1333701]
[1747656735016,4.16744208,2399.6,2399.2,0.1333701]
[1747656735379,4.16723774,2399.7,2399.3,0.796]
[1747656735380,22.0883451,2399.7,2399.3,0.796]
[1747656736001,22.08832034,2399.7,2399.4,0.28477608]
[1747656736415,8.973,2399.7,2399.4,0.28477608]
[1747656737019,4.16689179,2399.9,2399.4,4.45241627]
[1747656737226,26.942,2400.0,2399.4,4.45243688]
[1747656737409,26.942,2400.0,2399.5,4.16740673]
[1747656737585,26.942,2400.0,2399.6,4.16732846]
[1747656738019,26.942,2400.0,2399.7,0.1333701]
[1747656738322,31.10869344,2400.0,2399.7,0.1333701]
[1747656738614,4.16667371,2400.0,2399.7,0.1333701]
[1747656738984,4.16701391,2399.8,2399.7,0.1333701]
[1747656739579,4.16749042,2399.6,2399.1,4.31961197]
[1747656739822,22.06049042,2399.6,2399.1,4.31961197]
[1747656741123,17.893,2399.6,2399.2,4.30126557]
[1747656741319,17.893,2399.6,2399.2,0.13331615]
[1747656741518,20.09902493,2399.6,2399.2,0.13331615]
[1747656741680,4.16788229,2399.3,2399.2,0.13331615]
[1747656741886,4.21998921,2399.3,2399.2,0.13331615]
[1747656742614,4.21998921,2399.3,2398.3,4.93573868]
[1747656742615,0.7873,2399.2,2398.3,4.9357373]
[1747656742822,4.16882919,2398.8,2398.3,4.9357373]
[1747656743287,22.0402984,2399.1,2398.3,4.9357373]
[1747656743487,4.16856171,2399.0,2398.5,4.16926697]
[1747656744023,4.16856171,2399.0,2398.6,4.16904322]
[1747656744221,4.16844148,2399.0,2398.6,4.302394]
[1747656744737,17.872,2399.1,2398.6,4.30240889]
[1747656745039,22.04029936,2399.1,2398.6,4.30240889]
[1747656745233,4.1688454,2398.8,2398.6,0.13335078]
[1747656745435,4.16864693,2398.9,2398.6,0.13335078]
[1747656745803,4.16892483,2398.7,2398.6,0.13335078]
[1747656746004,4.16892483,2398.7,2398.3,0.7662]
[1747656746298,8.879,2399.0,2398.4,4.16941741]
[1747656746504,4.16858549,2398.9,2398.5,4.16920262]
[1747656746707,13.04743866,2399.0,2398.6,4.16907565]
[1747656746945,13.04743866,2399.0,2398.2,4.32119538]
[1747656746946,8.879,2399.0,2398.8,0.8244]
[1747656750249,2.20602493,2399.6,2398.8,0.8244]
[1747656750250,4.1672589,2399.7,2399.2,4.16792887]
[1747656750546,13.0092589,2399.7,2399.2,4.16793626]
[1747656750747,13.0092589,2399.7,2399.3,4.16781679]
[1747656751130,26.972,2399.8,2399.0,0.55]
[1747656751131,8.833,2399.8,2399.6,4.1672589]
[1747656751352,13.00436591,2400.2,2399.7,4.16709449]
[1747656751656,4.16675994,2400.0,2399.5,4.9175117]
[1747656751823,4.16675994,2400.0,2399.5,0.7501]
[1747656752043,4.16675994,2400.0,2399.5,4.9175424]
[1747656752263,4.16712133,2399.8,2399.5,0.7501]
[1747656752467,4.16745174,2399.6,2399.2,0.7738]
[1747656752965,4.16745174,2399.6,2398.9,8.98540598]
[1747656752966,4.9911035,2399.0,2398.9,0.15140598]
[1747656753166,23.86415555,2399.0,2398.9,0.15140598]
[1747656753473,23.81204065,2399.0,2398.9,0.15140598]
[1747656754162,23.81204065,2399.0,2398.1,0.1]
[1747656754163,4.16979401,2398.2,2398.1,0.1]
[1747656754474,8.939,2398.2,2398.1,0.1]
[1747656754680,8.938,2398.6,2398.1,4.26991855]
[1747656754872,8.939,2398.7,2398.1,0.1]
[1747656755078,4.16955772,2398.4,2398.1,0.1]
[1747656755373,4.16973048,2398.3,2398.1,0.1]
[1747656755552,4.16953076,2398.4,2398.1,0.1]
[1747656755746,4.16970662,2398.3,2398.1,0.1]
[1747656756075,4.16953146,2398.4,2398.1,0.1]
[1747656756578,4.16933378,2398.5,2398.1,0.1]
[1747656756738,4.1694626,2398.4,2398.1,0.1]
[1747656756947,13.10803792,2398.7,2398.2,4.30303531]
[1747656757285,4.16904248,2398.7,2398.2,4.30303954]
[1747656757491,8.93,2398.6,2398.3,0.8266]
[1747656757662,13.09910261,2398.6,2398.3,0.8266]
[1747656757982,4.16962014,2398.3,2398.2,0.13337469]
[1747656758164,4.16979401,2398.2,2398.1,0.1]
[1747656758566,13.11079401,2398.2,2398.1,0.1]
[1747656759068,13.09915618,2398.6,2398.1,0.1]
[1747656759069,18.001,2398.8,2398.1,0.1]
[1747656759264,4.16910789,2398.6,2398.1,0.1]
[1747656759581,4.16910789,2398.6,2398.1,4.26987563]
[1747656759782,17.905,2398.7,2398.2,4.16976361]
[1747656759991,7.75979867,2398.6,2398.1,0.1]
[1747656760191,4.16934115,2398.5,2398.1,4.26995916]
[1747656760491,7.75978626,2398.6,2398.1,4.26995916]
[1747656760657,7.75978626,2398.6,2398.1,3.26995916]
[1747656760854,3.5906,2398.6,2397.8,0.15140598]
[1747656761056,2.14956,2398.5,2397.8,0.15140598]
[1747656761268,8.992,2398.5,2397.8,0.15140598]
[1747656761487,4.17031569,2397.9,2397.8,0.15140598]
[1747656761669,13.18231569,2397.9,2397.8,0.15140598]
[1747656761986,4.17017877,2398.0,2397.8,0.15140598]
[1747656762287,4.16927246,2398.5,2397.8,4.32176213]
[1747656762453,4.16954386,2398.4,2397.9,4.17030973]
[1747656762648,4.16954386,2398.4,2397.8,12.32189374]
[1747656762649,2.64950725,2398.5,2397.8,12.32189374]
[1747656762857,17.963,2398.7,2397.9,0.8285]
[1747656763079,13.11001841,2398.7,2398.2,4.16972046]
[1747656763578,4.96496789,2398.1,2398.0,0.1333798]
[1747656763767,23.44646468,2398.1,2398.0,0.1333798]
[1747656764753,4.16989312,2398.2,2398.0,0.1333798]
[1747656764954,13.20896789,2398.1,2397.8,0.15140598]
[1747656765191,4.17019991,2398.0,2397.8,0.15140598]
[1747656765493,4.17028631,2398.0,2397.8,0.15140598]
[1747656765688,9.039,2398.1,2397.8,0.15140598]
[1747656765689,13.20900901,2398.1,2397.8,0.15140598]
[1747656766194,4.17031569,2397.9,2397.8,0.15140598]
[1747656766495,4.17024164,2398.0,2397.8,0.15140598]
[1747656766651,4.1702584,2398.0,2397.8,0.15140598]
[1747656767072,4.1702584,2398.0,2397.5,4.17093495]